bitfinex-derivatives/quotes_ETHF0:USTF0_20250505
["timestamp","ask_amount","ask_price","bid_price","bid_amount"]
[1746478712099,1.91898,1809.6,1809.5,43.60894]
[1746478718008,3.48248,1809.6,1809.5,43.60894]
[1746478718313,3.48248,1809.6,1809.5,41.90544]
[1746478721709,3.48248,1809.6,1809.5,40.8]
[1746478721895,3.48248,1809.6,1809.5,41.90544]
[1746478722707,3.48248,1809.6,1809.5,40.8]
[1746478723209,3.48248,1809.6,1809.5,41.90544]
[1746478723506,3.48248,1809.6,1809.5,40.8]
[1746478724606,3.48248,1809.6,1809.5,41.90544]
[1746478725002,6.69028,1809.6,1809.5,41.90544]
[1746478725397,6.69028,1809.6,1809.5,40.8]
[1746478726103,3.48248,1809.6,1809.5,41.90544]
[1746478726413,6.69028,1809.6,1809.5,41.90544]
[1746478728706,6.69028,1809.6,1809.5,43.63714]
[1746478730014,3.48248,1809.6,1809.5,43.63714]
[1746478730215,0.8136,1809.6,1809.5,43.63714]
[1746478730409,0.8136,1809.6,1809.5,44.19954]
[1746478730604,8.71789206,1809.8,1809.5,43.63714]
[1746478730805,1.10532,1809.7,1809.6,2.71358]
[1746478731011,1.10532,1809.7,1809.6,1.6082]
[1746478731314,1.10538,1809.6,1809.5,40.8]
[1746478731611,4.0414,1809.6,1809.0,10.59733777]
[1746478731813,4.0414,1809.6,1809.0,10.98453777]
[1746478731814,4.31348,1809.1,1809.0,10.98453777]
[1746478732113,4.31348,1809.1,1809.0,49.29527777]
[1746478732516,3.2078,1809.1,1809.0,50.90347777]
[1746478732715,4.8211,1809.1,1809.0,50.90347777]
[1746478733104,1.6369,1809.2,1809.1,1.10568]
[1746478733310,3.2502,1809.2,1809.1,2.71388]
[1746478733618,0.8278,1809.2,1809.1,2.71388]
[1746478733812,3.2078,1809.3,1809.2,1.10562]
[1746478734009,0.8091,1809.5,1809.4,1.1055]
[1746478734209,6.86665,1809.7,1809.6,1.10538]
[1746478734509,7.67575,1809.7,1809.6,1.10538]
[1746478734810,7.67576,1809.7,1809.6,1.10538]
[1746478735015,7.67576,1809.7,1809.5,1.6277]
[1746478735016,1.10538,1809.6,1809.5,2.73311]
[1746478735314,9.18697672,1809.6,1809.5,2.73311]
[1746478736215,10.29235672,1809.6,1809.5,2.73311]
[1746478737514,9.18697672,1809.6,1809.5,2.73311]
[1746478737713,10.29235672,1809.6,1809.5,2.73311]
[1746478737910,9.18697672,1809.6,1809.5,2.73311]
[1746478738418,10.29235672,1809.6,1809.5,2.73311]
[1746478738720,1.10538,1809.6,1809.5,2.73311]
[1746478739110,7.63237,1809.7,1809.6,1.10538]
[1746478739811,1.10538,1809.6,1809.5,2.73309]
[1746478740117,1.6057,1809.6,1809.5,2.73309]
[1746478740306,2.71108,1809.6,1809.5,2.73309]
[1746478741520,1.6057,1809.6,1809.5,2.73309]
[1746478742008,11.462058,1809.7,1809.6,1.10538]
[1746478742208,11.462058,1809.7,1809.6,2.68808]
[1746478742715,15.356698,1809.7,1808.7,40.3941349]
[1746478742921,4.31342,1809.2,1809.1,1.6865]
[1746478743217,4.31342,1809.2,1809.1,2.79218]
[1746478743616,1.10562,1809.2,1809.1,2.79218]
[1746478743822,2.76148,1809.3,1809.2,1.10562]
[1746478744016,2.76148,1809.3,1809.2,2.79212]
[1746478745621,1.6559,1809.3,1809.2,2.79212]
[1746478745815,0.8113,1809.3,1809.2,2.79212]
[1746478746322,1.91686,1809.3,1809.2,2.79212]
[1746478749925,1.10562,1809.2,1809.1,1.10563]
[1746478750222,5.15872,1809.2,1809.1,1.10563]
[1746478750422,6.87702,1809.2,1809.1,1.10563]
[1746478752223,1.10568,1809.1,1809.0,43.50144]
[1746478752420,2.80738,1809.1,1809.0,43.50144]
[1746478755225,1.10593,1808.7,1808.6,7.38953777]
[1746478755727,1.10593,1808.7,1808.6,49.29552777]
[1746478756117,1.89123,1808.7,1808.6,49.29552777]
[1746478756324,1.89123,1808.7,1808.6,41.90599]
[1746478756519,0.7853,1808.7,1808.6,43.49969]
[1746478756721,0.8398,1808.8,1808.7,1.10593]
[1746478756916,1.94567,1808.8,1808.7,2.69963]
[1746478757220,0.8398,1808.8,1808.7,2.69963]
[1746478757927,4.31366,1808.9,1808.8,1.10587]
[1746478758124,4.31366,1808.9,1808.8,2.82977]
[1746478758726,3.2078,1808.9,1808.8,2.82977]
[1746478759123,1.10572,1809.1,1808.8,2.82977]
[1746478759428,11.23160313,1809.2,1809.1,1.10568]
[1746478759631,11.970498,1809.2,1809.1,1.10568]
[1746478759826,10.621818,1809.2,1809.1,41.90568]
[1746478760219,9.516198,1809.2,1809.1,43.62958]
[1746478761333,8.719798,1809.2,1809.1,43.62958]
[1746478763127,5.511998,1809.2,1809.1,47.22058]
[1746478763832,11.58737672,1809.4,1809.3,1.10556]
[1746478763833,2.4004,1809.4,1809.3,1.10556]
[1746478764233,3.5059,1809.4,1809.3,1.10556]
[1746478768134,1.10562,1809.2,1809.1,41.90566]
[1746478768836,2.3792,1809.2,1809.1,41.90566]
[1746478769335,3.48482,1809.2,1809.1,41.90566]
[1746478769639,2.3792,1809.2,1809.1,41.90566]
[1746478770341,3.48482,1809.2,1809.1,40.8]
[1746478771039,3.48482,1809.2,1809.1,41.90568]
[1746478772443,2.3792,1809.2,1809.1,41.90568]
[1746478773341,3.48482,1809.2,1809.1,41.90568]
[1746478775045,2.3792,1809.2,1809.1,41.90568]
[1746478775238,3.48482,1809.2,1809.1,41.90568]
[1746478776939,1.10585,1808.9,1808.8,1.10578]
[1746478777134,4.31365,1808.9,1808.8,1.10578]
[1746478777334,4.31365,1808.9,1808.8,41.90578]
[1746478777741,5.15445,1808.9,1808.8,41.90578]
[1746478778042,0.8408,1808.9,1808.8,41.90578]
[1746478778433,1.94661,1808.9,1808.8,41.90578]
[1746478778940,5.15441,1808.9,1808.8,41.90578]
[1746478780245,0.8408,1808.9,1808.8,41.90578]
[1746478780738,2.77707,1809.0,1808.9,1.10581]
[1746478780939,2.77707,1809.0,1808.9,2.81441]
[1746478781346,2.77707,1809.0,1808.9,1.7086]
[1746478781742,2.77707,1809.0,1808.9,2.81441]
[1746478786645,5.94753,1809.1,1809.0,1.10574]
[1746478786846,1.634,1809.1,1809.0,2.80444]
[1746478788540,2.73968,1809.1,1809.0,2.80444]
[1746478788942,1.634,1809.1,1809.0,2.80444]
[1746478789244,2.73968,1809.1,1809.0,2.80444]
[1746478790546,1.634,1809.1,1809.0,2.80444]
[1746478790748,2.73968,1809.1,1809.0,2.80444]
[1746478791540,1.634,1809.1,1809.0,2.80444]
[1746478793748,2.73968,1809.1,1809.0,2.80444]
[1746478794845,6.87211167,1809.3,1809.2,1.10562]
[1746478796251,6.87211167,1809.3,1809.2,2.79962]
[1746478797053,3.2078,1809.3,1809.2,2.79962]
[1746478797352,2.71091,1809.4,1809.3,1.10556]
[1746478797649,2.71091,1809.4,1809.3,2.79956]
[1746478797950,1.6054,1809.4,1809.3,2.79956]
[1746478798348,0.7894,1809.4,1809.3,2.79956]
[1746478798851,6.87211167,1809.5,1809.4,1.1055]
[1746478799052,6.87211167,1809.5,1809.4,2.6843]
[1746478801056,3.66431167,1809.5,1809.4,2.6843]
[1746478801257,1.6624,1809.6,1809.5,1.10544]
[1746478801453,2.76778,1809.6,1809.5,2.79104]
[1746478801750,4.46128,1809.6,1809.5,2.79104]
[1746478802153,1.10544,1809.5,1809.4,1.10546]
[1746478802353,2.79894,1809.5,1809.4,1.10546]
[1746478802654,1.10554,1809.4,1809.3,1.10552]
[1746478802850,1.6935,1809.4,1809.3,1.10552]
[1746478808557,2.799,1809.4,1809.3,1.10552]
[1746478810257,1.10556,1809.3,1809.2,1.9345]
[1746478810458,4.42686,1809.3,1809.2,1.9345]
[1746478810654,4.42686,1809.3,1809.0,1.10573]
[1746478810655,1.10568,1809.1,1809.0,1.10573]
[1746478811051,2.77577,1809.2,1809.1,1.10568]
[1746478811257,2.7568,1809.3,1809.2,1.10562]
[1746478812863,6.42111167,1809.3,1809.2,1.10562]
[1746478813664,5.31551167,1809.3,1809.2,1.10562]
[1746478815451,1.6512,1809.3,1809.2,1.10562]
[1746478815963,2.75676,1809.3,1809.2,1.10562]
[1746478817861,1.10568,1809.2,1809.1,1.10564]
[1746478819465,4.31348,1809.2,1809.1,1.10564]
[1746478820468,1.10568,1809.2,1809.1,1.10564]
[1746478821263,2.75681,1809.3,1809.2,1.10562]
[1746478825364,4.44821,1809.3,1809.2,1.10562]
[1746478826481,3.3426,1809.3,1809.2,1.10562]
[1746478826683,2.75676,1809.3,1809.2,2.81262]
[1746478826880,4.44816,1809.3,1809.2,1.10562]
[1746478827075,1.10562,1809.2,1809.1,3.04024]
[1746478827283,2.79702,1809.2,1809.1,1.10564]
[1746478828782,1.6914,1809.2,1809.1,1.10564]
[1746478828983,1.6914,1809.2,1809.1,2.69654]
[1746478829478,1.6512,1809.3,1809.2,1.10562]
[1746478829689,1.6512,1809.3,1809.2,2.69652]
[1746478830180,0.844,1809.3,1809.2,2.69652]
[1746478830584,6.87211167,1809.4,1809.3,1.10556]
[1746478830884,6.87211167,1809.4,1809.3,2.69646]
[1746478831083,6.87211167,1809.4,1809.3,6.42846]
[1746478831984,3.66431167,1809.5,1809.4,1.1055]
[1746478832175,3.66431167,1809.5,1809.4,7.859]
[1746478835587,0.8273,1809.6,1809.5,1.10544]
[1746478835883,5.14048,1809.6,1809.5,2.75014]
[1746478836079,6.81208,1809.6,1809.5,1.6447]
[1746478836280,1.10544,1809.5,1809.4,1.10547]
[1746478836482,1.10556,1809.3,1809.2,3.586]
[1746478836680,1.10568,1809.1,1809.0,9.32423777]
[1746478837074,1.10568,1809.1,1809.0,7.38953777]
[1746478837075,8.04548,1809.1,1809.0,7.38953777]
[1746478837383,9.71708,1809.1,1809.0,7.38953777]
[1746478837585,9.71708,1809.1,1809.0,8.49527777]
[1746478838988,13.38139167,1809.1,1809.0,1.10574]
[1746478840287,9.64939167,1809.1,1809.0,1.10574]
[1746478842788,8.54371167,1809.1,1809.0,1.10574]
[1746478842988,3.66431167,1809.1,1809.0,2.81734]
[1746478844087,3.66431167,1809.1,1809.0,6.54934]
[1746478847189,8.57431167,1809.4,1809.3,1.10556]
[1746478847486,11.34221167,1809.4,1809.3,1.10556]
[1746478847889,8.57431167,1809.4,1809.3,1.10556]
[1746478848390,7.72071167,1809.4,1809.3,2.82296]
[1746478848588,6.87211167,1809.4,1809.3,2.82296]
[1746478848788,6.87211167,1809.4,1809.3,3.60526]
[1746478849085,6.87211167,1809.4,1809.3,7.33726]
[1746478849697,3.2078,1809.4,1809.3,7.33726]
[1746478851595,3.57062,1809.6,1809.5,1.10544]
[1746478851796,1.90822,1809.6,1809.5,1.10544]
[1746478852492,1.10552,1809.4,1809.3,1.1055]
[1746478852999,4.31329,1809.5,1809.4,1.10547]
[1746478854390,1.10555,1809.4,1809.3,1.10554]
[1746478854586,1.10556,1809.3,1809.2,6.37736]
[1746478854990,1.97005,1809.4,1809.3,1.10556]
[1746478856706,0.8645,1809.4,1809.3,1.10556]
[1746478857299,0.8645,1809.4,1809.3,2.67746]
[1746478860002,1.97,1809.4,1809.3,2.67746]
[1746478863393,1.97,1809.4,1809.3,1.10556]
[1746478863596,1.10556,1809.3,1809.2,7.45207]
[1746478863801,1.88746,1809.3,1809.2,7.45207]
[1746478864003,0.7819,1809.3,1809.2,5.51757]
[1746478864501,0.7819,1809.3,1809.2,7.18707]
[1746478865398,2.4056,1809.3,1809.2,7.18707]
[1746478866003,0.7819,1809.3,1809.2,7.18707]
[1746478866197,0.8645,1809.4,1809.3,1.10556]
[1746478866399,9.31341167,1809.5,1809.4,1.1055]
[1746478866902,7.68971167,1809.5,1809.4,1.1055]
[1746478867301,7.68971167,1809.5,1809.4,4.8375]
[1746478867602,4.0254,1809.5,1809.4,4.8375]
[1746478867999,5.13084,1809.5,1809.4,3.732]
[1746478868201,1.10556,1809.3,1809.2,5.51758]
[1746478868704,2.83715,1809.4,1809.3,1.10556]
[1746478869393,1.10556,1809.3,1809.2,5.51759]
[1746478869590,6.04496,1809.3,1809.2,0.829]
[1746478869791,11.04496,1809.3,1809.2,0.829]
[1746478870003,2.76417,1809.2,1808.8,48.18953777]
[1746478870202,1.10581,1808.9,1808.8,49.29533777]
[1746478870403,3.2078,1809.0,1808.9,1.10581]
[1746478870805,3.732,1809.3,1809.2,1.10562]
[1746478871005,3.732,1809.3,1809.2,4.31342]
[1746478871203,2.71231,1809.6,1809.5,1.10544]
[1746478871905,8.224308,1809.6,1809.5,1.10544]
[1746478872104,7.118898,1809.6,1809.4,1.6331]
[1746478872303,1.6069,1809.5,1809.4,2.7386]
[1746478873303,2.4745,1809.5,1809.4,2.7386]
[1746478876207,3.57994,1809.5,1809.4,2.7386]
[1746478877009,2.4745,1809.5,1809.4,2.7386]
[1746478879106,6.87181202,1809.7,1809.4,2.7386]
[1746478879306,3.66401202,1809.7,1809.6,1.10538]
[1746478879699,4.76933202,1809.7,1809.6,2.70438]
[1746478879904,6.48743202,1809.7,1809.6,2.70438]
[1746478880305,1.10538,1809.6,1809.5,4.68641]
[1746478880505,1.10538,1809.6,1809.5,3.581]
[1746478880506,2.75428,1809.6,1809.5,3.581]
[1746478881010,1.10544,1809.5,1809.4,1.10549]
[1746478881208,3.57264,1809.5,1809.4,1.10549]
[1746478883112,6.78044,1809.5,1809.4,1.10549]
[1746478884100,1.1055,1809.4,1809.3,3.92791]
[1746478884412,1.6936,1809.4,1809.3,2.72121]
[1746478884913,2.7991,1809.4,1809.3,2.72121]
[1746478887915,3.5924,1809.4,1809.3,2.72121]
[1746478888517,2.4869,1809.4,1809.3,2.72121]
[1746478888710,0.7933,1809.4,1809.3,2.72121]
[1746478889616,4.0261,1809.5,1809.4,1.1055]
[1746478889918,3.2078,1809.5,1809.4,2.7808]
[1746478890125,3.2078,1809.5,1809.4,6.5128]
[1746478890414,3.2078,1809.5,1809.4,11.5128]
[1746478890624,3.66401202,1809.6,1809.5,1.10544]
[1746478890806,3.66401202,1809.6,1809.5,6.36174]
[1746478891217,3.66401202,1809.6,1809.5,10.09374]
[1746478893312,3.66401202,1809.6,1809.5,50.89374]
[1746478895418,2.4708,1809.9,1809.8,1.10526]
[1746478896315,0.8209,1809.9,1809.8,1.10526]
[1746478896520,0.8209,1809.9,1809.8,2.80406]
[1746478897019,0.8209,1809.9,1809.8,6.38306]
[1746478897634,3.66401202,1810.0,1809.9,1.10519]
[1746478897923,3.66401202,1810.0,1809.9,44.16669]
[1746478898114,3.66401202,1810.0,1809.9,47.89869]
[1746478899616,6.92891202,1810.3,1810.2,1.10501]
[1746478900217,6.92891202,1810.3,1810.2,2.69191]
[1746478902027,4.45461202,1810.3,1810.2,2.69191]
[1746478902221,3.66401202,1810.3,1810.2,6.42391]
[1746478902926,5.35991202,1810.3,1810.2,6.42391]
[1746478903130,1.6959,1810.3,1810.2,6.42391]
[1746478905326,1.7024,1810.5,1810.4,1.10489]
[1746478905527,4.52883,1810.5,1810.4,1.10489]
[1746478905915,3.424,1810.5,1810.4,1.10489]
[1746478906122,4.52883,1810.5,1810.4,1.10489]
[1746478907822,3.424,1810.5,1810.4,1.10489]
[1746478909130,4.52883,1810.5,1810.4,1.10489]
[1746478909332,3.424,1810.5,1810.4,1.10489]
[1746478911732,3.2078,1810.6,1810.5,1.10483]
[1746478912133,3.2078,1810.6,1810.5,2.74493]
[1746478912334,3.2078,1810.6,1810.5,43.54493]
[1746478914133,3.2078,1810.6,1810.5,41.90483]
[1746478914531,4.8384,1810.6,1810.5,41.90483]
[1746478915131,1.6306,1810.6,1810.5,41.90483]
[1746478917840,1.6306,1810.6,1810.5,43.49413]
[1746478919235,1.6306,1810.6,1810.5,47.22613]
[1746478919533,4.8863,1810.8,1810.5,52.22613]
[1746478919735,4.8863,1810.8,1810.7,1.10471]
[1746478919736,1.6785,1810.8,1810.7,1.10471]
[1746478919933,1.6785,1810.8,1810.7,4.68171]
[1746478920341,1.6785,1810.8,1810.7,45.48171]
[1746478920636,3.3035,1810.8,1810.7,45.48171]
[1746478921236,3.3035,1810.8,1810.7,49.21371]
[1746478921539,0.1,1811.0,1810.9,1.10458]
[1746478921741,1.725,1811.0,1810.9,1.10458]
[1746478924734,1.725,1811.0,1810.9,2.80878]
[1746478924735,0.1,1811.0,1810.9,2.80878]
[1746478924941,0.1,1811.0,1810.9,1.10458]
[1746478925240,1.7272,1811.0,1810.9,41.90458]
[1746478928138,0.1,1811.0,1810.9,47.22728]
[1746478929040,1e-05,1811.0,1810.9,52.22728]
[1746478929237,3.2743,1811.6,1811.5,1.10422]
[1746478929541,3.2743,1811.6,1811.5,4.67922]
[1746478929744,1.6202,1811.6,1811.5,4.67922]
[1746478929935,1.6202,1811.6,1811.5,6.30832]
[1746478930139,3.66401202,1811.8,1811.7,1.1041]
[1746478930337,3.66401202,1811.8,1811.6,1.6291]
[1746478930533,3.333,1811.7,1811.6,2.73326]
[1746478930945,3.333,1811.7,1811.6,43.53326]
[1746478931548,3.66401202,1811.8,1811.7,1.1041]
[1746478931850,3.66401202,1811.8,1811.7,2.7332]
[1746478932545,3.66401202,1811.8,1811.7,44.3875]
[1746478932749,3.66401202,1811.8,1811.7,49.3875]
[1746478933146,0.46535202,1811.8,1811.7,53.1195]
[1746478933443,8.54e-06,1811.9,1811.8,1.10404]
[1746478933741,8.54e-06,1811.9,1811.8,9.52334]
[1746478933945,8.54e-06,1811.9,1811.8,5.2115]
[1746478934139,1.64430854,1811.9,1811.8,47.11554]
[1746478934551,1.6443,1811.9,1811.8,47.11554]
[1746478934852,10.95607,1811.9,1811.8,40.8]
[1746478935165,1.10407,1811.8,1811.6,3.574]
[1746478935448,0.8316,1811.7,1811.6,3.574]
[1746478935650,5.1435,1811.7,1811.6,44.374]
[1746478935945,10.6651,1811.7,1811.6,44.374]
[1746478936150,15.5012,1811.7,1811.6,44.374]
[1746478936448,6.1893,1811.7,1811.6,45.47816]
[1746478937152,2.4573,1811.7,1811.6,45.47816]
[1746478938347,0.8316,1811.7,1811.6,45.47816]
[1746478938550,5.7013,1811.9,1811.8,1.10404]
[1746478939150,5.7013,1811.9,1811.7,2.80237]
[1746478939453,1.7024,1811.8,1811.6,44.374]
[1746478939750,3.2078,1811.7,1811.6,44.374]
[1746478939953,4.0728,1811.7,1811.6,44.374]
[1746478940246,9.5072,1811.7,1811.6,44.374]
[1746478940443,9.5072,1811.7,1811.6,45.47816]
[1746478940749,6.2994,1811.7,1811.6,45.47816]
[1746478941849,7.4035,1811.7,1811.6,44.374]
[1746478942150,7.4035,1811.7,1811.6,45.47816]
[1746478942151,6.2994,1811.7,1811.6,45.47816]
[1746478943347,2.5674,1811.7,1811.6,45.47816]
[1746478943751,2.5674,1811.7,1811.6,47.17636]
[1746478944255,0.8279,1811.8,1811.7,1.1041]
[1746478944451,0.8279,1811.8,1811.7,2.7371]
[1746478945656,1.93197,1811.8,1811.6,44.374]
[1746478945845,1.93197,1811.8,1811.6,45.47816]
[1746478945846,1.6065,1811.7,1811.6,45.47816]
[1746478946153,1.6065,1811.7,1811.6,47.11116]
[1746478946847,1.6065,1811.7,1811.6,46.007]
[1746478947053,1.6065,1811.7,1811.6,44.374]
[1746478947445,2.7106,1811.7,1811.6,44.374]
[1746478949252,6.4426,1811.7,1811.6,44.374]
[1746478949753,6.4426,1811.7,1811.6,45.47816]
[1746478950542,5.3385,1811.7,1811.6,45.47816]
[1746478951151,6.7801,1811.8,1811.7,1.1041]
[1746478951348,6.7801,1811.8,1811.7,2.6783]
[1746478951552,3.2242,1811.8,1811.7,1.1041]
[1746478952255,6.9562,1811.8,1811.7,1.1041]
[1746478952753,10.164,1811.8,1811.7,1.1041]
[1746478953555,8.06024,1811.8,1811.7,1.1041]
[1746478953758,6.9562,1811.8,1811.7,1.1041]
[1746478954660,8.06024,1811.8,1811.6,47.05231]
[1746478954958,11.26805,1811.8,1811.6,47.05234]
[1746478955157,1.6405,1811.7,1811.6,45.47814]
[1746478957255,1.64828363,1811.8,1811.7,1.1041]
[1746478957456,1.64828363,1811.8,1811.7,2.7577]
[1746478958060,3.37238363,1811.8,1811.7,2.7577]
[1746478958258,0.83558363,1811.8,1811.7,2.7577]
[1746478959360,0.83558363,1811.8,1811.7,3.5585]
[1746478967563,0.83558363,1811.8,1811.7,2.7577]
[1746478972876,0.00768363,1811.8,1811.7,2.7577]
[1746478974279,3.35478363,1811.8,1811.7,2.7577]
[1746478978084,3.35478363,1811.8,1811.7,4.6991]
[1746478978290,1.1041,1811.7,1811.6,41.90414]
[1746478978489,1.6322,1811.7,1811.6,41.90414]
[1746478979289,5.3642,1811.7,1811.6,41.90414]
[1746478979992,6.4683,1811.7,1811.6,41.90414]
[1746478980588,5.3642,1811.7,1811.6,41.90414]
[1746478980987,5.3642,1811.7,1811.6,43.59954]
[1746478981292,1.6322,1811.7,1811.6,43.59954]
[1746478981892,2.7363,1811.7,1811.6,41.90414]
[1746478982297,1.6322,1811.7,1811.6,41.90414]
[1746478983093,5.3642,1811.7,1811.6,41.90414]
[1746478983888,6.4683,1811.7,1811.6,41.90414]
[1746478984892,5.3642,1811.7,1811.6,41.90414]
[1746478985295,6.4683,1811.7,1811.6,41.90414]
[1746478986593,5.3642,1811.7,1811.6,41.90414]
[1746478986795,6.4683,1811.7,1811.6,41.90414]
[1746478987188,5.3642,1811.7,1811.6,41.90414]
[1746478987390,3.732,1811.7,1811.6,46.90414]
[1746478987697,2.58616,1811.7,1811.6,49.94884]
[1746478988199,2.76728363,1811.8,1811.7,1.1041]
[1746478988385,2.76728363,1811.8,1811.7,2.775]
[1746478988588,0.83558363,1811.8,1811.7,2.775]
[1746478989490,1.9316,1811.9,1811.8,1.10404]
[1746478989698,7.34933067,1812.0,1811.9,1.10397]
[1746478990000,5.80222067,1812.4,1812.0,2.75968]
[1746478990190,5.80222067,1812.4,1812.3,1.10373]
[1746478990389,0.82747,1812.3,1812.1,10.70554]
[1746478990692,0.82747,1812.3,1812.2,2.71619]
[1746478991194,5.80222067,1812.4,1812.3,1.10373]
[1746478991394,5.80222067,1812.4,1812.3,3.28053]
[1746478992192,5.80222067,1812.4,1812.3,7.01253]
[1746478993997,1.5868,1812.6,1812.5,1.10361]
[1746478994189,1.5868,1812.6,1812.5,4.67661]
[1746478994589,1.5868,1812.6,1812.5,3.573]
[1746478994799,7.69035,1812.6,1812.4,1.10365]
[1746478995102,3.2078,1812.5,1812.3,41.90367]
[1746478995291,2.4231,1812.4,1812.3,41.90367]
[1746478995492,3.2376,1812.4,1812.3,41.90367]
[1746478995889,4.34127,1812.4,1812.3,40.8]
[1746478996098,13.07327,1812.4,1812.3,40.8]
[1746478996400,1.1038,1812.2,1812.0,12.06639777]
[1746478996694,1.6155,1812.3,1812.1,41.90385]
[1746478996889,2.71925,1812.3,1812.1,41.90385]
[1746478997092,6.45125,1812.3,1812.1,41.90385]
[1746478997300,1.6155,1812.2,1812.1,41.90385]
[1746478997800,2.71929,1812.2,1812.1,41.90385]
[1746478998003,5.92709,1812.2,1812.1,41.90385]
[1746478998206,9.65909,1812.2,1812.1,41.90385]
[1746478998396,8.5553,1812.2,1812.1,41.90385]
[1746478999104,9.65909,1812.2,1812.1,41.90385]
[1746478999306,1.10396,1812.0,1811.9,1.10395]
[1746478999606,1.10404,1811.8,1811.7,7.38953777]
[1746478999790,3.2078,1811.8,1811.7,8.49363777]
[1746479000196,8.6468,1811.8,1811.7,8.49363777]
[1746479000407,8.6468,1811.8,1811.7,1.1041]
[1746479000999,5.439,1811.8,1811.7,1.1041]
[1746479002605,6.54304,1811.8,1811.7,1.1041]
[1746479002805,9.75084,1811.8,1811.6,2.70903]
[1746479003003,1.6462,1811.7,1811.3,10.59733777]
[1746479003301,1.6462,1811.7,1811.3,7.38953777]
[1746479003302,3.2078,1811.6,1811.3,7.38953777]
[1746479003496,2.4853,1811.5,1811.4,40.8]
[1746479003699,3.2912,1811.5,1811.4,40.8]
[1746479004102,3.2912,1811.5,1811.4,41.90428]
[1746479004399,7.0232,1811.5,1811.4,41.90428]
[1746479005208,8.12742,1811.5,1811.4,41.90428]
[1746479005601,7.0232,1811.5,1811.4,41.90428]
[1746479005810,8.12742,1811.5,1811.4,40.8]
[1746479006419,8.12742,1811.5,1811.3,2.82099]
[1746479006420,1.1044,1811.2,1811.1,7.38953777]
[1746479006608,4.3122,1811.2,1811.1,7.38953777]
[1746479006802,4.3122,1811.2,1811.1,48.18953777]
[1746479007208,8.0442,1811.2,1811.1,48.18953777]
[1746479007508,8.0442,1811.2,1811.1,41.90446]
[1746479008313,3.732,1811.2,1811.1,41.90446]
[1746479008610,3.732,1811.2,1811.1,43.54936]
[1746479009114,1.93775,1811.3,1811.2,1.1044]
[1746479009412,1.10435,1811.3,1811.2,1.1044]
[1746479009609,2.72923,1811.4,1811.3,1.10434]
[1746479010113,6.46123,1811.4,1811.3,1.10434]
[1746479010711,1.1044,1811.2,1811.1,41.90442]
[1746479010912,4.3122,1811.2,1811.1,41.90442]
[1746479011110,1.6249,1811.3,1811.2,1.1044]
[1746479011510,2.72924,1811.3,1811.2,1.1044]
[1746479011710,1.6249,1811.3,1811.2,1.1044]
[1746479012113,5.3569,1811.3,1811.2,1.1044]
[1746479012411,5.3569,1811.3,1811.2,2.7774]
[1746479013007,3.732,1811.3,1811.2,2.7774]
[1746479013212,3.2078,1811.4,1811.3,1.10434]
[1746479013409,4.31208,1811.4,1811.3,1.10434]
[1746479013611,6.01468,1811.4,1811.3,1.10434]
[1746479014112,9.74668,1811.4,1811.3,1.10434]
[1746479017415,8.6424,1811.4,1811.3,1.10434]
[1746479017618,9.74668,1811.4,1811.3,1.10434]
[1746479018417,8.6424,1811.4,1811.3,1.10434]
[1746479018612,9.74668,1811.4,1811.3,1.10434]
[1746479018813,8.6424,1811.4,1811.3,1.10434]
[1746479019114,4.9104,1811.4,1811.3,1.10434]
[1746479020018,1.7026,1811.4,1811.3,1.10434]
[1746479020613,2.4783,1811.5,1811.4,1.10428]
[1746479020912,3.2078,1811.6,1811.5,1.10422]
[1746479021119,1.6198,1811.7,1811.6,1.10416]
[1746479021314,2.7239,1811.7,1811.6,1.10416]
[1746479021614,1.6198,1811.7,1811.6,1.10416]
[1746479022112,3.732,1811.7,1811.6,1.10416]
[1746479022618,3.732,1811.7,1811.6,2.82066]
[1746479024117,7.3741,1811.8,1811.7,1.1041]
[1746479024319,7.3741,1811.8,1811.7,2.8258]
[1746479024514,6.5409,1811.8,1811.7,2.8258]
[1746479025321,10.2729,1811.8,1811.7,2.8258]
[1746479028017,6.9398,1811.8,1811.7,2.8258]
[1746479028214,3.732,1811.8,1811.7,2.8258]
[1746479029120,0.8332,1811.9,1811.8,1.10404]
[1746479029319,0.8332,1811.9,1811.8,3.35444]
[1746479029518,1.5756,1812.1,1812.0,1.10391]
[1746479030120,1.5756,1812.1,1812.0,2.78911]
[1746479030315,0.8331,1812.2,1812.1,1.10385]
[1746479030519,0.8331,1812.2,1812.1,2.78905]
[1746479030821,7.17691367,1812.4,1812.3,1.10373]
[1746479031322,10.90891367,1812.4,1812.3,1.10373]
[1746479031522,8.6194,1812.4,1812.2,1.6852]
[1746479031716,9.72309,1812.4,1812.3,40.8]
[1746479031916,8.04349,1812.4,1812.3,40.8]
[1746479032122,8.04349,1812.4,1812.3,41.90373]
[1746479032319,6.9398,1812.4,1812.3,41.90373]
[1746479032520,8.04347,1812.4,1812.3,40.8]
[1746479032722,13.04347,1812.4,1812.3,40.8]
[1746479033317,1.10373,1812.3,1812.2,1.10378]
[1746479033716,1.10373,1812.3,1812.2,41.90378]
[1746479033926,1.10373,1812.3,1812.2,40.8]
[1746479034223,1.10379,1812.2,1812.1,1.10382]
[1746479034522,5.16359,1812.2,1812.1,1.10382]
[1746479034717,4.0598,1812.2,1812.1,41.90382]
[1746479035117,7.7918,1812.2,1812.1,41.90382]
[1746479035423,8.89559,1812.2,1812.1,41.90382]